[Event "Betsys MČR v online bleskovém šachu 2021"]
[Site "Chess.com"]
[Date "2021.04.17"]
[Round "10"]
[White "polik1112"]
[Black "Hroch_Hippo"]
[Result "1-0"]
[WhiteElo "1330"]
[BlackElo "1091"]
[TimeControl "180+1"]
[EndTime "10:36:15 PDT"]
[Termination "Uživatel polik1112 zvítězil po vzdání soupeře"]

1. e4 {[%clk 0:03:00.9]} 1... e5 {[%clk 0:02:59.5]} 2. Nf3 {[%clk 0:03:00.1]}
2... Nc6 {[%clk 0:03:00.1]} 3. Bb5 {[%clk 0:02:59.3]} 3... d6 {[%clk 0:02:59.2]}
4. Bxc6+ {[%clk 0:02:57.4]} 4... bxc6 {[%clk 0:02:58.6]} 5. d4 {[%clk
0:02:57.8]} 5... d5 {[%clk 0:02:55.8]} 6. exd5 {[%clk 0:02:55]} 6... cxd5 {[%clk
0:02:55.1]} 7. Nxe5 {[%clk 0:02:52]} 7... Bd7 {[%clk 0:02:54.5]} 8. O-O {[%clk
0:02:50.4]} 8... Nf6 {[%clk 0:02:53]} 9. Re1 {[%clk 0:02:46.5]} 9... Be7 {[%clk
0:02:51.5]} 10. Nxd7 {[%clk 0:02:44.9]} 10... Qxd7 {[%clk 0:02:50.9]} 11. Qe2
{[%clk 0:02:40.6]} 11... g6 {[%clk 0:02:45.5]} 12. Bg5 {[%clk 0:02:39.3]} 12...
Qd6 {[%clk 0:02:40.9]} 13. Nc3 {[%clk 0:02:31.8]} 13... Rd8 {[%clk 0:02:37.2]}
14. Nb5 {[%clk 0:02:30.2]} 14... Qb4 {[%clk 0:02:30.8]} 15. Bxf6 {[%clk
0:02:21.8]} 15... Rd7 {[%clk 0:02:26.5]} 16. Bxh8 {[%clk 0:02:19.5]} 16... Qxb2
{[%clk 0:02:20.2]} 17. Bf6 {[%clk 0:02:15.5]} 17... Qb4 {[%clk 0:02:17.9]} 18.
Nxa7 {[%clk 0:02:06.5]} 18... Kf8 {[%clk 0:02:13.5]} 19. Nc6 {[%clk 0:02:03.1]}
19... Qd6 {[%clk 0:02:12.8]} 20. Bxe7+ {[%clk 0:02:02]} 20... Rxe7 {[%clk
0:02:12.8]} 21. Qxe7+ {[%clk 0:02:01.5]} 21... Qxe7 {[%clk 0:02:12.2]} 22. Rxe7
{[%clk 0:02:01.2]} 1-0

[Event "Betsys MČR v online bleskovém šachu 2021"]
[Site "Chess.com"]
[Date "2021.04.17"]
[Round "10"]
[White "AlenaSouralova"]
[Black "adambelaska"]
[Result "0-1"]
[WhiteElo "915"]
[BlackElo "1396"]
[TimeControl "180+1"]
[EndTime "10:36:29 PDT"]
[Termination "Uživatel adambelaska zvítězil matem"]

1. e4 {[%clk 0:02:57.8]} 1... d5 {[%clk 0:03:00.9]} 2. exd5 {[%clk 0:02:47.2]}
2... Nf6 {[%clk 0:02:58.7]} 3. Nc3 {[%clk 0:02:46.1]} 3... Nxd5 {[%clk
0:02:58.1]} 4. Nxd5 {[%clk 0:02:45.5]} 4... Qxd5 {[%clk 0:02:58]} 5. d4 {[%clk
0:02:44.8]} 5... Nc6 {[%clk 0:02:56.8]} 6. Be3 {[%clk 0:02:37.6]} 6... Bf5
{[%clk 0:02:50.9]} 7. Nf3 {[%clk 0:02:35.4]} 7... g6 {[%clk 0:02:45.2]} 8. Bd3
{[%clk 0:02:30.2]} 8... Bxd3 {[%clk 0:02:42.1]} 9. Qxd3 {[%clk 0:02:31.1]} 9...
Bg7 {[%clk 0:02:38.7]} 10. O-O-O {[%clk 0:02:28.9]} 10... Nb4 {[%clk 0:02:35.8]}
11. Qd2 {[%clk 0:02:13.2]} 11... Nxa2+ {[%clk 0:02:33.5]} 12. Kb1 {[%clk
0:02:12]} 12... O-O {[%clk 0:01:56.2]} 13. h4 {[%clk 0:02:09]} 13... a5 {[%clk
0:01:51.2]} 14. g4 {[%clk 0:02:07.2]} 14... Nb4 {[%clk 0:01:50.6]} 15. h5 {[%clk
0:02:02.4]} 15... Qa2+ {[%clk 0:01:46.4]} 16. Kc1 {[%clk 0:01:57.7]} 16... Qa1#
{[%clk 0:01:47.3]} 0-1

[Event "Betsys MČR v online bleskovém šachu 2021"]
[Site "Chess.com"]
[Date "2021.04.17"]
[Round "10"]
[White "Svandik49"]
[Black "RadosC"]
[Result "0-1"]
[WhiteElo "2270"]
[BlackElo "2496"]
[TimeControl "180+1"]
[EndTime "10:36:37 PDT"]
[Termination "Uživatel RadosC zvítězil po vzdání soupeře"]

1. Nf3 {[%clk 0:03:00.9]} 1... c5 {[%clk 0:02:59.2]} 2. g3 {[%clk 0:02:58.6]}
2... Nc6 {[%clk 0:02:58.9]} 3. Bg2 {[%clk 0:02:57.9]} 3... g6 {[%clk 0:02:59]}
4. O-O {[%clk 0:02:56.6]} 4... Bg7 {[%clk 0:02:59.7]} 5. c4 {[%clk 0:02:55.8]}
5... e5 {[%clk 0:02:58.9]} 6. a3 {[%clk 0:02:49.3]} 6... Nge7 {[%clk 0:02:58.2]}
7. Nc3 {[%clk 0:02:46.9]} 7... O-O {[%clk 0:02:57.4]} 8. Rb1 {[%clk 0:02:44.6]}
8... a5 {[%clk 0:02:57.4]} 9. Ne1 {[%clk 0:02:44.8]} 9... d6 {[%clk 0:02:47.6]}
10. Nc2 {[%clk 0:02:45.1]} 10... Nd4 {[%clk 0:02:43.2]} 11. Nxd4 {[%clk
0:02:40.7]} 11... exd4 {[%clk 0:02:41.7]} 12. Nd5 {[%clk 0:02:40]} 12... Nxd5
{[%clk 0:02:41.1]} 13. Bxd5 {[%clk 0:02:38.4]} 13... Bh3 {[%clk 0:02:40.5]} 14.
Bg2 {[%clk 0:02:35.3]} 14... Bxg2 {[%clk 0:02:39.5]} 15. Kxg2 {[%clk 0:02:36.2]}
15... d5 {[%clk 0:02:37.3]} 16. b3 {[%clk 0:02:30.1]} 16... b5 {[%clk
0:02:34.5]} 17. d3 {[%clk 0:02:29.3]} 17... bxc4 {[%clk 0:02:32.8]} 18. bxc4
{[%clk 0:02:29.6]} 18... dxc4 {[%clk 0:02:33]} 19. dxc4 {[%clk 0:02:30.5]} 19...
Re8 {[%clk 0:02:28.8]} 20. Qd3 {[%clk 0:02:29.5]} 20... Qe7 {[%clk 0:02:26.8]}
21. Re1 {[%clk 0:02:26.2]} 21... Rab8 {[%clk 0:02:18.7]} 22. Bf4 {[%clk
0:02:15.7]} 22... Rxb1 {[%clk 0:02:17.7]} 23. Rxb1 {[%clk 0:02:16.6]} 23... h6
{[%clk 0:02:14.2]} 24. Rb8 {[%clk 0:01:54.8]} 24... Rxb8 {[%clk 0:02:10.6]} 25.
Bxb8 {[%clk 0:01:55.7]} 25... Qb7+ {[%clk 0:02:10.7]} 0-1

[Event "Betsys MČR v online bleskovém šachu 2021"]
[Site "Chess.com"]
[Date "2021.04.17"]
[Round "10"]
[White "RunningPawnz88"]
[Black "Ami2013"]
[Result "1-0"]
[WhiteElo "1351"]
[BlackElo "500"]
[TimeControl "180+1"]
[EndTime "10:36:43 PDT"]
[Termination "Uživatel RunningPawnz88 zvítězil matem"]

1. e4 {[%clk 0:03:00.9]} 1... e5 {[%clk 0:02:56.3]} 2. Bc4 {[%clk 0:02:59.9]}
2... Nf6 {[%clk 0:02:48.1]} 3. d3 {[%clk 0:02:58.6]} 3... Bc5 {[%clk 0:02:46.1]}
4. Bg5 {[%clk 0:02:54.3]} 4... O-O {[%clk 0:02:40.3]} 5. Bxf6 {[%clk 0:02:52.6]}
5... Qxf6 {[%clk 0:02:37.9]} 6. Qf3 {[%clk 0:02:52.4]} 6... Qh4 {[%clk
0:02:28.4]} 7. Nc3 {[%clk 0:02:49.4]} 7... d6 {[%clk 0:02:21.2]} 8. Nge2 {[%clk
0:02:46.2]} 8... Bg4 {[%clk 0:02:13.6]} 9. Qg3 {[%clk 0:02:42.2]} 9... Qf6
{[%clk 0:02:07]} 10. O-O-O {[%clk 0:02:34.4]} 10... Bxe2 {[%clk 0:01:57.5]} 11.
Nxe2 {[%clk 0:02:32.1]} 11... Bxf2 {[%clk 0:01:53.3]} 12. Qf3 {[%clk 0:02:26.7]}
12... Qh6+ {[%clk 0:01:46.8]} 13. Kb1 {[%clk 0:02:24.3]} 13... Bd4 {[%clk
0:01:39.5]} 14. Nxd4 {[%clk 0:02:22.5]} 14... exd4 {[%clk 0:01:35.1]} 15. Rdf1
{[%clk 0:02:18.1]} 15... Re8 {[%clk 0:01:31.7]} 16. Qxf7+ {[%clk 0:02:14.8]}
16... Kh8 {[%clk 0:01:18]} 17. Qxe8# {[%clk 0:02:14.7]} 1-0

[Event "Betsys MČR v online bleskovém šachu 2021"]
[Site "Chess.com"]
[Date "2021.04.17"]
[Round "10"]
[White "pkozubik"]
[Black "DavidZidlicky"]
[Result "1-0"]
[WhiteElo "1197"]
[BlackElo "1666"]
[TimeControl "180+1"]
[EndTime "10:36:52 PDT"]
[Termination "Uživatel pkozubik zvítězil po vzdání soupeře"]

1. e4 {[%clk 0:03:00.9]} 1... c5 {[%clk 0:02:59.6]} 2. Nf3 {[%clk 0:03:00.5]}
2... Nc6 {[%clk 0:02:59.1]} 3. d4 {[%clk 0:02:59.2]} 3... cxd4 {[%clk
0:02:58.6]} 4. Nxd4 {[%clk 0:02:59.3]} 4... e5 {[%clk 0:02:58.8]} 5. Nxc6 {[%clk
0:02:58.6]} 5... bxc6 {[%clk 0:02:58.2]} 6. Bd3 {[%clk 0:02:55.9]} 6... Bc5
{[%clk 0:02:55.1]} 7. O-O {[%clk 0:02:55]} 7... Nf6 {[%clk 0:02:53.9]} 8. a3
{[%clk 0:02:53.1]} 8... d5 {[%clk 0:02:53.1]} 9. exd5 {[%clk 0:02:48.3]} 9...
cxd5 {[%clk 0:02:52.5]} 10. b4 {[%clk 0:02:48]} 10... Bb6 {[%clk 0:02:46.7]} 11.
c4 {[%clk 0:02:47.5]} 11... dxc4 {[%clk 0:02:25.7]} 12. Bxc4 {[%clk 0:02:47.2]}
12... Bxf2+ {[%clk 0:02:12.8]} 13. Kxf2 {[%clk 0:02:25.8]} 13... Qb6+ {[%clk
0:02:05]} 14. Be3 {[%clk 0:02:14.2]} 14... Ne4+ {[%clk 0:02:04.6]} 15. Kf3
{[%clk 0:02:07]} 15... Qg6 {[%clk 0:01:45.2]} 16. Bb5+ {[%clk 0:01:51.4]} 16...
Kf8 {[%clk 0:01:42.4]} 1-0

[Event "Betsys MČR v online bleskovém šachu 2021"]
[Site "Chess.com"]
[Date "2021.04.17"]
[Round "10"]
[White "pudltomik"]
[Black "EDA16"]
[Result "0-1"]
[WhiteElo "771"]
[BlackElo "1164"]
[TimeControl "180+1"]
[EndTime "10:36:52 PDT"]
[Termination "Uživatel EDA16 zvítězil matem"]

1. e4 {[%clk 0:03:00.9]} 1... c5 {[%clk 0:02:54.7]} 2. Nf3 {[%clk 0:03:00.1]}
2... d6 {[%clk 0:02:54]} 3. Bc4 {[%clk 0:02:58.8]} 3... e6 {[%clk 0:02:51.7]} 4.
Nc3 {[%clk 0:02:52.3]} 4... Nc6 {[%clk 0:02:49.9]} 5. d3 {[%clk 0:02:46]} 5...
Nf6 {[%clk 0:02:49.1]} 6. Bg5 {[%clk 0:02:41.7]} 6... Be7 {[%clk 0:02:47.6]} 7.
g3 {[%clk 0:02:39.6]} 7... O-O {[%clk 0:02:45.5]} 8. O-O {[%clk 0:02:38.5]} 8...
h6 {[%clk 0:02:43.3]} 9. Bf4 {[%clk 0:02:33.8]} 9... e5 {[%clk 0:02:33.4]} 10.
Be3 {[%clk 0:02:30.6]} 10... Bg4 {[%clk 0:02:30.8]} 11. Re1 {[%clk 0:02:27.4]}
11... Nd4 {[%clk 0:02:25.7]} 12. Bxd4 {[%clk 0:02:26.2]} 12... cxd4 {[%clk
0:02:21.1]} 13. Nb5 {[%clk 0:02:23.8]} 13... a6 {[%clk 0:02:19.2]} 14. Na3
{[%clk 0:02:20.1]} 14... b5 {[%clk 0:02:18.1]} 15. Bb3 {[%clk 0:02:17.5]} 15...
Qd7 {[%clk 0:02:13.7]} 16. Qd2 {[%clk 0:01:56.7]} 16... Bxf3 {[%clk 0:02:08]}
17. c3 {[%clk 0:01:46.9]} 17... Qh3 {[%clk 0:02:06]} 18. Be6 {[%clk 0:01:30.2]}
18... Qg2# {[%clk 0:01:58.9]} 0-1

[Event "Betsys MČR v online bleskovém šachu 2021"]
[Site "Chess.com"]
[Date "2021.04.17"]
[Round "10"]
[White "veronikam"]
[Black "VOJTASEK2009"]
[Result "1-0"]
[WhiteElo "1520"]
[BlackElo "1277"]
[TimeControl "180+1"]
[EndTime "10:37:05 PDT"]
[Termination "Uživatel veronikam zvítězil matem"]

1. e4 {[%clk 0:03:00.9]} 1... e5 {[%clk 0:02:59.2]} 2. Nf3 {[%clk 0:03:00.7]}
2... Nc6 {[%clk 0:02:58.1]} 3. Bb5 {[%clk 0:03:00.4]} 3... d6 {[%clk 0:02:57.7]}
4. O-O {[%clk 0:02:59.4]} 4... Bd7 {[%clk 0:02:57.8]} 5. d4 {[%clk 0:02:56.6]}
5... exd4 {[%clk 0:02:53.6]} 6. Nxd4 {[%clk 0:02:55.7]} 6... Nxd4 {[%clk
0:02:51]} 7. Bxd7+ {[%clk 0:02:55]} 7... Qxd7 {[%clk 0:02:50.8]} 8. Qxd4 {[%clk
0:02:55.1]} 8... Nf6 {[%clk 0:02:49.4]} 9. Bg5 {[%clk 0:02:54.1]} 9... Be7
{[%clk 0:02:49.2]} 10. Nc3 {[%clk 0:02:51.8]} 10... O-O {[%clk 0:02:48.8]} 11.
Rad1 {[%clk 0:02:45.9]} 11... h6 {[%clk 0:02:45.6]} 12. Bf4 {[%clk 0:02:34.4]}
12... Nh5 {[%clk 0:02:41.5]} 13. e5 {[%clk 0:02:30.4]} 13... Nxf4 {[%clk
0:02:37.8]} 14. Qxf4 {[%clk 0:02:28.6]} 14... Rfe8 {[%clk 0:02:30.7]} 15. Rfe1
{[%clk 0:02:20.3]} 15... a6 {[%clk 0:02:25]} 16. Nd5 {[%clk 0:02:09.4]} 16... c6
{[%clk 0:02:19.2]} 17. Nb6 {[%clk 0:02:08.1]} 17... Bg5 {[%clk 0:02:14.1]} 18.
Qg3 {[%clk 0:02:00.7]} 18... Qf5 {[%clk 0:02:04.8]} 19. Nxa8 {[%clk 0:01:58.7]}
19... Rxa8 {[%clk 0:02:04.2]} 20. exd6 {[%clk 0:01:58.4]} 20... Rd8 {[%clk
0:01:59.6]} 21. Qd3 {[%clk 0:01:51.2]} 21... Qf6 {[%clk 0:01:55.5]} 22. d7
{[%clk 0:01:47.6]} 22... Bh4 {[%clk 0:01:50.6]} 23. Re8+ {[%clk 0:01:44.2]}
23... Rxe8 {[%clk 0:01:45.5]} 24. dxe8=Q# {[%clk 0:01:43.7]} 1-0

[Event "Betsys MČR v online bleskovém šachu 2021"]
[Site "Chess.com"]
[Date "2021.04.17"]
[Round "10"]
[White "Maty_2010"]
[Black "Anyna"]
[Result "0-1"]
[WhiteElo "945"]
[BlackElo "888"]
[TimeControl "180+1"]
[EndTime "10:37:09 PDT"]
[Termination "Uživatel Anyna zvítězil matem"]

1. e4 {[%clk 0:03:00.6]} 1... d5 {[%clk 0:03:00.3]} 2. exd5 {[%clk 0:02:59.6]}
2... Qxd5 {[%clk 0:03:00.7]} 3. Nc3 {[%clk 0:02:59.5]} 3... Qa5 {[%clk
0:02:59.4]} 4. Bc4 {[%clk 0:02:52]} 4... Nf6 {[%clk 0:02:58.2]} 5. Nf3 {[%clk
0:02:50]} 5... Nc6 {[%clk 0:02:57]} 6. d4 {[%clk 0:02:48.6]} 6... Bg4 {[%clk
0:02:53.4]} 7. h3 {[%clk 0:02:46.1]} 7... Bxf3 {[%clk 0:02:47.8]} 8. Qxf3 {[%clk
0:02:43.9]} 8... O-O-O {[%clk 0:02:48.1]} 9. Qg4+ {[%clk 0:02:40.7]} 9... Kb8
{[%clk 0:02:43.7]} 10. Qf3 {[%clk 0:02:32.4]} 10... Nxd4 {[%clk 0:02:42.8]} 11.
Qd3 {[%clk 0:02:29.2]} 11... e5 {[%clk 0:02:35.7]} 12. O-O {[%clk 0:02:23.9]}
12... e4 {[%clk 0:02:28.7]} 13. Qd2 {[%clk 0:02:20.6]} 13... Nf3+ {[%clk
0:02:20.8]} 14. gxf3 {[%clk 0:02:08.1]} 14... Rxd2 {[%clk 0:02:17.5]} 15. Bxd2
{[%clk 0:02:08.1]} 15... exf3 {[%clk 0:02:15.4]} 16. Rfe1 {[%clk 0:02:05]} 16...
Bb4 {[%clk 0:02:03.2]} 17. Bxf7 {[%clk 0:01:59.3]} 17... Bxc3 {[%clk 0:01:58.1]}
18. Bxc3 {[%clk 0:01:59]} 18... Qg5+ {[%clk 0:01:55.5]} 19. Kf1 {[%clk
0:01:22.1]} 19... Qg2# {[%clk 0:01:50.9]} 0-1

[Event "Betsys MČR v online bleskovém šachu 2021"]
[Site "Chess.com"]
[Date "2021.04.17"]
[Round "10"]
[White "Milan_Jancek"]
[Black "JohnnyDuck64"]
[Result "0-1"]
[WhiteElo "1816"]
[BlackElo "2090"]
[TimeControl "180+1"]
[EndTime "10:37:19 PDT"]
[Termination "Uživatel JohnnyDuck64 zvítězil po vzdání soupeře"]

1. c4 {[%clk 0:03:00.9]} 1... c5 {[%clk 0:02:59.5]} 2. Nc3 {[%clk 0:03:01.2]}
2... Nc6 {[%clk 0:02:59.3]} 3. g3 {[%clk 0:03:01.8]} 3... g6 {[%clk 0:02:59.3]}
4. Bg2 {[%clk 0:03:02.5]} 4... Bg7 {[%clk 0:02:59.7]} 5. d3 {[%clk 0:03:03.2]}
5... e5 {[%clk 0:02:58.5]} 6. e4 {[%clk 0:03:03.7]} 6... d6 {[%clk 0:02:57.1]}
7. Nge2 {[%clk 0:03:04.4]} 7... Nge7 {[%clk 0:02:57.3]} 8. O-O {[%clk 0:03:05]}
8... O-O {[%clk 0:02:57.7]} 9. f4 {[%clk 0:03:04.8]} 9... Nd4 {[%clk 0:02:56.6]}
10. Nxd4 {[%clk 0:03:03.8]} 10... cxd4 {[%clk 0:02:55.8]} 11. Ne2 {[%clk
0:03:04.5]} 11... Rb8 {[%clk 0:02:43.9]} 12. b3 {[%clk 0:03:02.3]} 12... b5
{[%clk 0:02:38.2]} 13. h3 {[%clk 0:03:00.7]} 13... bxc4 {[%clk 0:02:37.7]} 14.
bxc4 {[%clk 0:03:00.8]} 14... Kh8 {[%clk 0:02:30.9]} 15. Ba3 {[%clk 0:03:00]}
15... f5 {[%clk 0:02:10.5]} 16. Rb1 {[%clk 0:02:59.7]} 16... Rxb1 {[%clk
0:02:03.5]} 17. Qxb1 {[%clk 0:02:59.7]} 17... fxe4 {[%clk 0:02:03.6]} 18. Bxe4
{[%clk 0:02:59.4]} 18... Bxh3 {[%clk 0:02:00.8]} 19. Rf2 {[%clk 0:02:59]} 19...
Bg4 {[%clk 0:01:43.8]} 20. Qb4 {[%clk 0:02:51.6]} 20... Nc8 {[%clk 0:01:27.1]}
21. Kg2 {[%clk 0:02:24.7]} 21... Bxe2 {[%clk 0:01:22.3]} 22. Rxe2 {[%clk
0:02:24.6]} 22... exf4 {[%clk 0:01:21.8]} 23. Bf3 {[%clk 0:02:21.3]} 23... fxg3
{[%clk 0:01:18.3]} 24. Re6 {[%clk 0:02:19.1]} 24... Qh4 {[%clk 0:01:11.7]} 0-1

[Event "Betsys MČR v online bleskovém šachu 2021"]
[Site "Chess.com"]
[Date "2021.04.17"]
[Round "10"]
[White "Nimrod64"]
[Black "sipos88"]
[Result "1-0"]
[WhiteElo "2241"]
[BlackElo "1870"]
[TimeControl "180+1"]
[EndTime "10:37:34 PDT"]
[Termination "Uživatel Nimrod64 zvítězil po vzdání soupeře"]

1. d4 {[%clk 0:03:00.9]} 1... g6 {[%clk 0:02:57.8]} 2. Nf3 {[%clk 0:03:01.8]}
2... d6 {[%clk 0:02:58]} 3. c4 {[%clk 0:03:01.8]} 3... Nh6 {[%clk 0:02:57.7]} 4.
Nc3 {[%clk 0:03:02.3]} 4... f5 {[%clk 0:02:58.1]} 5. g3 {[%clk 0:03:01.1]} 5...
Nf7 {[%clk 0:02:58.2]} 6. d5 {[%clk 0:03:00.4]} 6... Bg7 {[%clk 0:02:57.9]} 7.
Bg2 {[%clk 0:02:57.3]} 7... e5 {[%clk 0:02:58]} 8. dxe6 {[%clk 0:02:55.8]} 8...
Bxe6 {[%clk 0:02:57.9]} 9. Nd4 {[%clk 0:02:50.3]} 9... Bc8 {[%clk 0:02:50.1]}
10. O-O {[%clk 0:02:46]} 10... O-O {[%clk 0:02:49.8]} 11. e3 {[%clk 0:02:35.7]}
11... c5 {[%clk 0:02:49.8]} 12. Nde2 {[%clk 0:02:35]} 12... Nc6 {[%clk
0:02:47.6]} 13. b3 {[%clk 0:02:34.4]} 13... Be6 {[%clk 0:02:39.7]} 14. Bb2
{[%clk 0:02:32.7]} 14... Qc7 {[%clk 0:02:35.5]} 15. Nb5 {[%clk 0:02:25.6]} 15...
Qe7 {[%clk 0:02:29.6]} 16. Bxg7 {[%clk 0:02:23.9]} 16... Kxg7 {[%clk 0:02:30.5]}
17. Nbc3 {[%clk 0:02:22.5]} 17... a6 {[%clk 0:02:26.6]} 18. Qd2 {[%clk
0:02:21.2]} 18... Rad8 {[%clk 0:02:23.7]} 19. Rfd1 {[%clk 0:02:20.5]} 19... h5
{[%clk 0:02:13.8]} 20. Nf4 {[%clk 0:02:20]} 20... Rd7 {[%clk 0:02:09.6]} 21.
Nfd5 {[%clk 0:02:17.8]} 21... Bxd5 {[%clk 0:02:07.2]} 22. Nxd5 {[%clk
0:02:17.4]} 22... Qe6 {[%clk 0:02:02.4]} 23. Nc3 {[%clk 0:02:13.9]} 23... Rfd8
{[%clk 0:01:59.1]} 24. Rac1 {[%clk 0:02:10.8]} 24... h4 {[%clk 0:01:54.7]} 25.
Qb2 {[%clk 0:02:02.4]} 25... Qf6 {[%clk 0:01:47.7]} 26. Qb1 {[%clk 0:02:00]}
26... hxg3 {[%clk 0:01:47.1]} 27. hxg3 {[%clk 0:01:58.4]} 27... Rh8 {[%clk
0:01:44.3]} 28. Nd5 {[%clk 0:01:55.2]} 28... Qg5 {[%clk 0:01:40.8]} 29. Qb2+
{[%clk 0:01:52.4]} 29... Kg8 {[%clk 0:01:29.9]} 30. Nf6+ {[%clk 0:01:49.8]} 1-0

[Event "Betsys MČR v online bleskovém šachu 2021"]
[Site "Chess.com"]
[Date "2021.04.17"]
[Round "10"]
[White "viklan"]
[Black "Patrik_Kohm"]
[Result "1-0"]
[WhiteElo "1588"]
[BlackElo "1393"]
[TimeControl "180+1"]
[EndTime "10:37:42 PDT"]
[Termination "Uživatel viklan zvítězil po vzdání soupeře"]

1. d4 {[%clk 0:03:00.9]} 1... d5 {[%clk 0:02:59.7]} 2. c4 {[%clk 0:03:01.8]}
2... e6 {[%clk 0:02:59.3]} 3. Nf3 {[%clk 0:03:01.9]} 3... Nf6 {[%clk 0:02:59.2]}
4. g3 {[%clk 0:03:02.1]} 4... Be7 {[%clk 0:02:58.6]} 5. Bg2 {[%clk 0:03:02.6]}
5... O-O {[%clk 0:02:58.8]} 6. O-O {[%clk 0:03:03.1]} 6... dxc4 {[%clk
0:02:58.5]} 7. Ne5 {[%clk 0:02:57.6]} 7... c6 {[%clk 0:02:53.4]} 8. Nxc4 {[%clk
0:02:57]} 8... Nbd7 {[%clk 0:02:52.9]} 9. a4 {[%clk 0:02:54.9]} 9... Nb6 {[%clk
0:02:52.9]} 10. Ne5 {[%clk 0:02:49.2]} 10... Bd6 {[%clk 0:02:48.5]} 11. a5
{[%clk 0:02:46.8]} 11... Nbd7 {[%clk 0:02:47.4]} 12. Nc4 {[%clk 0:02:37.7]}
12... Be7 {[%clk 0:02:45.2]} 13. Bf4 {[%clk 0:02:34.9]} 13... c5 {[%clk
0:02:37.1]} 14. Nc3 {[%clk 0:02:04.6]} 14... cxd4 {[%clk 0:02:33.8]} 15. Qxd4
{[%clk 0:02:03.3]} 15... Bc5 {[%clk 0:02:33.8]} 16. Qd2 {[%clk 0:02:01.5]} 16...
Qe7 {[%clk 0:02:29.8]} 17. Bd6 {[%clk 0:01:58.2]} 17... Bxd6 {[%clk 0:02:28.5]}
18. Qxd6 {[%clk 0:01:54.6]} 18... Qxd6 {[%clk 0:02:27.7]} 19. Nxd6 {[%clk
0:01:54]} 19... Rb8 {[%clk 0:02:25.5]} 20. Ncb5 {[%clk 0:01:48.7]} 20... a6
{[%clk 0:02:22.1]} 21. Na7 {[%clk 0:01:47.7]} 21... b6 {[%clk 0:02:08.2]} 22.
Naxc8 {[%clk 0:01:46.6]} 22... Rfxc8 {[%clk 0:02:06]} 23. Nxc8 {[%clk
0:01:45.5]} 23... Rxc8 {[%clk 0:02:06.9]} 24. axb6 {[%clk 0:01:44.9]} 24... Rb8
{[%clk 0:02:06.3]} 25. Rxa6 {[%clk 0:01:43.9]} 25... Nxb6 {[%clk 0:02:06.4]} 26.
Rc1 {[%clk 0:01:36.7]} 26... Nfd5 {[%clk 0:02:05.8]} 27. Bxd5 {[%clk 0:01:27.4]}
27... Nxd5 {[%clk 0:02:06.7]} 28. e4 {[%clk 0:01:14.3]} 28... Nb4 {[%clk
0:02:04.8]} 29. Rb6 {[%clk 0:01:11.5]} 1-0

[Event "Betsys MČR v online bleskovém šachu 2021"]
[Site "Chess.com"]
[Date "2021.04.17"]
[Round "10"]
[White "ikovacs"]
[Black "tkokosek007"]
[Result "1-0"]
[WhiteElo "1089"]
[BlackElo "1366"]
[TimeControl "180+1"]
[EndTime "10:37:57 PDT"]
[Termination "Uživatel ikovacs zvítězil po vzdání soupeře"]

1. d4 {[%clk 0:03:00.9]} 1... d5 {[%clk 0:02:58.7]} 2. e3 {[%clk 0:03:00.8]}
2... Bf5 {[%clk 0:02:56.6]} 3. Nf3 {[%clk 0:03:00.3]} 3... c6 {[%clk 0:02:56.3]}
4. Bd3 {[%clk 0:02:59.8]} 4... Bg6 {[%clk 0:02:54.3]} 5. Bxg6 {[%clk 0:02:57.5]}
5... hxg6 {[%clk 0:02:53.7]} 6. b3 {[%clk 0:02:54.5]} 6... Nd7 {[%clk
0:02:49.1]} 7. Bb2 {[%clk 0:02:52]} 7... e6 {[%clk 0:02:44.4]} 8. Nbd2 {[%clk
0:02:51]} 8... Bd6 {[%clk 0:02:43.9]} 9. c4 {[%clk 0:02:48.8]} 9... Ngf6 {[%clk
0:02:42.9]} 10. c5 {[%clk 0:02:43.4]} 10... Bc7 {[%clk 0:02:40.4]} 11. h3 {[%clk
0:02:34.7]} 11... Ne4 {[%clk 0:02:33.6]} 12. Nxe4 {[%clk 0:02:31.1]} 12... dxe4
{[%clk 0:02:32.5]} 13. Nd2 {[%clk 0:02:31.3]} 13... Nf6 {[%clk 0:02:23.4]} 14.
O-O {[%clk 0:02:20.6]} 14... Qd5 {[%clk 0:02:16.5]} 15. f3 {[%clk 0:02:15.6]}
15... Rxh3 {[%clk 0:01:51.9]} 16. gxh3 {[%clk 0:02:03.9]} 16... Qg5+ {[%clk
0:01:51.1]} 17. Kf2 {[%clk 0:01:52.4]} 17... Qg3+ {[%clk 0:01:37.5]} 18. Ke2
{[%clk 0:01:51.6]} 18... Qg2+ {[%clk 0:01:28.7]} 19. Rf2 {[%clk 0:01:47.3]}
19... exf3+ {[%clk 0:01:28.3]} 20. Nxf3 {[%clk 0:01:43.2]} 20... Ne4 {[%clk
0:01:03.7]} 21. Rxg2 {[%clk 0:01:37.1]} 1-0

[Event "Betsys MČR v online bleskovém šachu 2021"]
[Site "Chess.com"]
[Date "2021.04.17"]
[Round "10"]
[White "Hapinka"]
[Black "petr812"]
[Result "0-1"]
[WhiteElo "1822"]
[BlackElo "2116"]
[TimeControl "180+1"]
[EndTime "10:38:02 PDT"]
[Termination "Uživatel petr812 zvítězil po vzdání soupeře"]

1. e4 {[%clk 0:03:00.9]} 1... e6 {[%clk 0:02:59.4]} 2. d4 {[%clk 0:03:00.2]}
2... d5 {[%clk 0:03:00.3]} 3. e5 {[%clk 0:03:00.7]} 3... c5 {[%clk 0:03:00.1]}
4. c3 {[%clk 0:03:01.4]} 4... Nc6 {[%clk 0:03:00.1]} 5. Nf3 {[%clk 0:03:02]}
5... Nge7 {[%clk 0:02:59.6]} 6. Bd3 {[%clk 0:02:57.1]} 6... Ng6 {[%clk 0:02:59]}
7. O-O {[%clk 0:02:55.9]} 7... cxd4 {[%clk 0:02:57.5]} 8. cxd4 {[%clk
0:02:55.5]} 8... Be7 {[%clk 0:02:56.7]} 9. Nc3 {[%clk 0:02:54.6]} 9... a6 {[%clk
0:02:53.7]} 10. Be3 {[%clk 0:02:33]} 10... b5 {[%clk 0:02:48]} 11. a3 {[%clk
0:02:29.6]} 11... Rb8 {[%clk 0:02:45]} 12. Rc1 {[%clk 0:02:25.6]} 12... Bd7
{[%clk 0:02:39.9]} 13. Qd2 {[%clk 0:02:23.6]} 13... Na5 {[%clk 0:02:33.5]} 14.
Rc2 {[%clk 0:01:28.4]} 14... Nc4 {[%clk 0:02:30.9]} 15. Qc1 {[%clk 0:01:22]}
15... a5 {[%clk 0:02:25.9]} 16. Bg5 {[%clk 0:01:17.5]} 16... h6 {[%clk
0:02:16.8]} 17. Bxe7 {[%clk 0:01:14.8]} 17... Qxe7 {[%clk 0:02:11.7]} 18. b3
{[%clk 0:01:14.4]} 18... Nxa3 {[%clk 0:02:05.1]} 19. Ra2 {[%clk 0:01:09]} 19...
b4 {[%clk 0:02:04.1]} 20. Na4 {[%clk 0:01:09]} 20... Bxa4 {[%clk 0:02:01.6]} 21.
bxa4 {[%clk 0:01:09]} 21... O-O {[%clk 0:01:59.2]} 0-1